fUSD/lending_fUSD_20240327
["ID","MTS","AMOUNT","RATE_DAILY","PERIOD"]
[320700307,1711512638455,-212.99524635,0.000488,2]
[320700308,1711512638465,-604.49132469,0.000488,44]
[320700309,1711512638474,-150.5,0.0004885,15]
[320700310,1711512638483,-150.5,0.0004886,15]
[320700311,1711512638492,-150.5,0.0004887,15]
[320700312,1711512638501,-526.62,0.0004887,2]
[320700313,1711512638510,-526.62,0.0004887,2]
[320700314,1711512638519,-526.62,0.0004887,2]
[320700315,1711512638528,-526.62,0.0004887,2]
[320700316,1711512638536,-526.62,0.0004887,2]
[320700317,1711512638545,-526.62,0.0004887,2]
[320700318,1711512638554,-19512.50487393,0.00048879,7]
[320700319,1711512638563,-150.0,0.00048879,7]
[320700320,1711512638572,-150.0,0.00048879,7]
[320700321,1711512638581,-160.8838293,0.00048879,30]
[320700322,1711512638590,-1201601.83983733,0.0004888,2]
[320700323,1711512638606,-46034.3525,0.0004888,2]
[320700324,1711512638629,-1013.8679979,0.0004888,2]
[320700325,1711512642446,-553.73076108,0.0004888,2]
[320700326,1711512642501,-18514.699852,0.0004888,2]
[320700327,1711512642612,-722.62775311,0.0004888,2]
[320700333,1711512642856,-2480.76390744,0.0004888,2]
[320700334,1711512642868,-1175.46277606,0.0004888,2]
[320700335,1711512642880,-1654.00809896,0.0004888,2]
[320700336,1711512643174,-409.32368924,0.0004888,2]
[320700592,1711512646050,-60355.19864696,0.0004888,2]
[320700593,1711512646226,-8446.4601675,0.0004888,2]
[320700594,1711512646239,-524.50470203,0.0004888,2]
[320700603,1711513633162,-445.55633578,0.00023991,2]
[320700604,1711513633184,-608.68189537,0.00023992,2]
[320700605,1711513645097,-1995.8,0.00023991,2]
[320700606,1711513645117,-763.08835726,0.00023992,2]
[320700607,1711513645137,-224.76344794,0.00024,2]
[320700608,1711513645156,-1152.8021,0.00029898,2]
[320700609,1711513645176,-155.47290894,0.00029998,2]
[320700610,1711513645196,-169.83745372,0.00029998,2]
[320700611,1711513645216,-501.40886076,0.00038154,2]
[320700623,1711513832038,-425.866066,0.0002387,2]
[320700624,1711513832047,-528.48,0.00023982,2]
[320700625,1711513832056,-182.06318982,0.00023982,2]
[320700626,1711513832070,-346.41681018,0.00023982,2]
[320700627,1711513832079,-528.48,0.00023982,2]
[320700628,1711513832090,-244.18316523,0.00023982,2]
[320700629,1711513832099,-3592.44,0.00023991,2]
[320700630,1711513832108,-785.65625679,0.00023991,2]
[320700631,1711513832153,-2517.5961336,0.00023991,2]
[320700632,1711513832166,-289.18760961,0.00023991,2]
[320700633,1711513832177,-3592.44,0.00023991,2]
[320700634,1711513832187,-3592.44,0.00023991,2]
[320700635,1711513832197,-581.64558179,0.00023991,2]
[320700636,1711513832207,-268.16837909,0.00023991,2]
[320700637,1711513832217,-218.11494947,0.00023991,2]
[320700638,1711513832228,-500.0,0.00023991,2]
[320700639,1711513832239,-500.0,0.00023991,2]
[320700640,1711513832248,-500.0,0.00023991,2]
[320700641,1711513832257,-601.22091602,0.00023991,2]
[320700642,1711513832269,-500.0,0.00023991,2]
[320700643,1711513832280,-500.0,0.00023991,2]
[320700644,1711513832290,-500.0,0.00023991,2]
[320700645,1711513832300,-500.0,0.00023991,2]
[320700646,1711513832310,-500.0,0.00023991,2]
[320700647,1711513832319,-500.0,0.00023991,2]
[320700648,1711513832328,-500.0,0.00023991,2]
[320700649,1711513832337,-280.0506031,0.00023991,2]
[320700650,1711513832347,-500.0,0.00023991,2]
[320700651,1711513832356,-17335.78394254,0.00023992,2]
[320700652,1711513832379,-5491.6631012,0.00023992,2]
[320700654,1711513838080,-1235.47644,0.00023992,2]
[320700655,1711513838138,-1901.776698,0.00023992,2]
[320700656,1711513838194,-663438.95224251,0.00023992,2]
[320700657,1711513838205,-1095.8396578,0.00037954,8]
[320700658,1711513838215,-150.0,0.00038,2]
[320700659,1711513838225,-5000.0,0.00038,5]
[320700660,1711513838235,-425.46012522,0.00038054,2]
[320700661,1711513838245,-498.59113924,0.00038154,2]
[320700662,1711513838255,-2957.62674015,0.00038154,4]
[320700663,1711513838265,-177.642045,0.000382,120]
[320700664,1711513838275,-608.0,0.000397,2]
[320700665,1711513838285,-1095.83965775,0.0004058,9]
[320700666,1711513838294,-1095.83965775,0.00043207,11]
[320700667,1711513838304,-267.3106379,0.00043889,20]
[320700668,1711513838314,-712.61418707,0.00043989,4]
[320700669,1711513838326,-2125.35,0.00043989,2]
[320700670,1711513838335,-393.92,0.00043989,2]
[320700671,1711513838345,-197.77,0.00045257,2]
[320700672,1711513838355,-200.0,0.00045747,2]
[320700673,1711513838365,-1095.83965775,0.00045833,12]
[320700674,1711513838377,-528.48,0.0004599,2]
[320700675,1711513838387,-528.48,0.0004599,2]
[320700676,1711513838395,-528.48,0.0004599,2]
[320700677,1711513838404,-250.0,0.00045991,110]
[320700678,1711513838414,-500000.0,0.00046,4]
[320700679,1711513838423,-154.22157007,0.0004652,31]
[320700680,1711513838432,-156.80149723,0.0004662,30]
[320700681,1711513838443,-7213.87,0.0004708,2]
[320700682,1711513838452,-4181.71,0.000472,120]
[320700683,1711513838462,-193.11,0.00047256,15]
[320700684,1711513838472,-4282.15,0.00047264,120]
[320700685,1711513838481,-195.07,0.00047278,2]
[320700686,1711513838491,-400.0,0.0004728,120]
[320700687,1711513838501,-1000.0,0.0004732,2]
[320700688,1711513838510,-1000.0,0.0004736,120]
[320700689,1711513838520,-250.0,0.00047397,120]
[320700690,1711513838530,-197.77,0.00047521,2]
[320700691,1711513838539,-156.80149723,0.00047872,30]
[320700692,1711513838549,-170.46952289,0.00047897,4]
[320700693,1711513838559,-1369.53548763,0.00047899,4]
[320700694,1711513838568,-646.91054049,0.00047899,4]
[320700695,1711513838578,-500.0,0.00048,2]
[320700696,1711513838587,-347.44,0.00048078,2]
[320700697,1711513838597,-347.44,0.00048078,2]
[320700698,1711513838606,-347.44,0.00048078,2]
[320700699,1711513838615,-347.44,0.00048078,2]
[320700700,1711513838625,-347.44,0.00048078,2]
[320700701,1711513838634,-528.23,0.00048078,2]
[320700702,1711513838644,-153.28846418,0.00048169,30]
[320700703,1711513838653,-1521.35295712,0.000482,2]
[320700704,1711513838663,-156.80149723,0.00048224,30]
[320700705,1711513838673,-155.09633978,0.00048319,30]
[320700706,1711513838683,-1426.41873102,0.00048363,2]
[320700707,1711513838693,-1273.72203908,0.00048412,2]
[320700708,1711513838702,-1095.83965775,0.00048459,13]
[320700709,1711513838713,-1273.72203908,0.00048534,2]
[320700710,1711513838724,-1426.41873102,0.00048609,2]
[320700711,1711513838735,-2042.00313453,0.00048777,2]
[320700712,1711513838748,-266.06381513,0.00048777,2]
[320700713,1711513838758,-1313.6124,0.00048779,2]
[320700714,1711513838769,-182.13912405,0.00048779,2]
[320700715,1711513838779,-627.6278886,0.00048779,2]
[320700716,1711513838790,-176.13912234,0.0004878,120]
[320700717,1711513838800,-192.60986901,0.0004878,2]
[320700718,1711513838810,-455.68646996,0.0004878,2]
[320700719,1711513838819,-8540.80723504,0.0004878,2]
[320700720,1711513838828,-359.28899248,0.0004878,2]
[320700721,1711513838837,-694.32007853,0.0004878,44]
[320700722,1711513838848,-709.36350887,0.00048798,10]
[320700723,1711513838858,-1600.0,0.000488,120]
[320700724,1711513838867,-4555.2429336,0.00048833,4]
[320700725,1711513838876,-800.0,0.00048849,2]
[320700726,1711513838884,-800.0,0.00048849,2]
[320700727,1711513838893,-177.57,0.0004885,15]
[320700728,1711513838903,-150.5,0.0004885,15]
[320700729,1711513838913,-150.5,0.0004886,15]
[320700730,1711513838924,-150.5,0.0004886,15]
[320700731,1711513838935,-528.48,0.00048867,2]
[320700732,1711513838945,-150.5,0.0004887,15]
[320700733,1711513838954,-150.5,0.0004887,15]
[320700734,1711513838964,-528.48,0.0004887,2]
[320700735,1711513838973,-528.48,0.0004887,2]
[320700736,1711513838982,-528.48,0.0004887,2]
[320700737,1711513838991,-187.33831917,0.00048873,4]
[320700738,1711513839000,-155.0,0.00048873,4]
[320700739,1711513839010,-1429.16042548,0.00048873,4]
[320700740,1711513839018,-203.31499678,0.00048873,4]
[320700741,1711513839027,-275.31152188,0.00048873,4]
[320700742,1711513839038,-305.58963213,0.00048874,4]
[320700743,1711513839047,-20000.00000099,0.00048874,5]
[320700744,1711513839056,-156.63077705,0.00048874,2]
[320700745,1711513839065,-1000.0,0.00048875,2]
[320700746,1711513839074,-12305.79184955,0.00048875,4]
[320700747,1711513839087,-22717.09992442,0.00048875,4]
[320700748,1711513839096,-3064.04437008,0.00048875,4]
[320700749,1711513839105,-811.47476779,0.00048875,4]
[320700750,1711513839114,-1251.36664114,0.00048875,4]
[320700751,1711513839123,-155.0,0.00048875,4]
[320700752,1711513839132,-854.63911886,0.00048877,10]
[320700753,1711513839142,-1254.20020675,0.00048877,120]
[320700754,1711513839150,-593.34627763,0.00048877,2]
[320700755,1711513839160,-172.69101799,0.00048877,2]
[320700756,1711513839169,-277.28347538,0.00048877,4]
[320700757,1711513839178,-264.38551208,0.00048877,4]
[320700758,1711513839187,-205.09313323,0.00048877,4]
[320700759,1711513839197,-205.37545792,0.00048877,4]
[320700760,1711513839206,-232.20623137,0.00048877,4]
[320700761,1711513839215,-263.36806643,0.00048877,4]
[320700762,1711513839225,-155.0,0.00048877,4]
[320700763,1711513839236,-2166.95825015,0.00048877,4]
[320700764,1711513839246,-4423.27045175,0.00048877,4]
[320700765,1711513839256,-235.18980143,0.00048877,4]
[320700766,1711513839268,-319.30622196,0.00048877,4]
[320700767,1711513839277,-363.25483005,0.00048877,4]
[320700768,1711513839289,-1111.0,0.00048877,4]
[320700769,1711513839299,-58036.70373674,0.00048877,7]
[320700770,1711513839309,-1253.0462164,0.00048877,2]
[320700771,1711513839318,-155.28046975,0.00048878,4]
[320700772,1711513839328,-1540.264606,0.00048878,4]
[320700773,1711513839337,-1756.57153444,0.00048878,4]
[320700774,1711513839348,-1930.34898614,0.00048878,4]
[320700775,1711513839358,-2343.94057078,0.00048878,4]
[320700776,1711513839368,-253.15040409,0.00048879,4]
[320700777,1711513839378,-155.4765796,0.00048879,4]
[320700778,1711513839388,-776.83603317,0.00048879,2]
[320700779,1711513839398,-1814.82714589,0.00048879,4]
[320700780,1711513839408,-150.0,0.00048879,7]
[320700781,1711513839418,-150.0,0.00048879,30]
[320700782,1711513839427,-1142205.28228948,0.0004888,2]
[320700783,1711513840516,-2155.61136974,0.0004888,2]
[320700784,1711513840533,-77356.08910296,0.0004888,2]
[320700794,1711513843063,-311.7686698,0.0004888,2]
[320700795,1711513843281,-36159.39867099,0.0004888,2]
[320700796,1711513843294,-781.43855834,0.0004888,2]
[320700797,1711513843316,-13503.98387615,0.0004888,2]
[320700798,1711513843330,-6498.73643432,0.0004888,2]
[320700799,1711513843397,-695.40270437,0.00048,7]
[320700800,1711513843410,-2634.5524,0.00048,7]
[320700801,1711513843423,-650.00001,0.00048,7]
[320700802,1711513843453,-1451.49105688,0.00048,7]
[320700803,1711513843462,-552276.58584522,0.0004888,2]
[320700804,1711513843475,-2840.66253385,0.0004888,2]
[320700805,1711513843488,-2985.45004235,0.0004888,2]
[320700823,1711513846166,-173.11977842,0.0004878,2]
[320700824,1711513846176,-78.52718616,0.00048879,4]
[320700825,1711513846188,-541.7444885,0.00048879,4]
[320700826,1711513846198,-10854.73379116,0.0004888,2]
[320700827,1711513846209,-2985.43301719,0.0004888,2]
[320700828,1711514828140,-150.0,0.00034548,10]
[320700829,1711514828161,-1397.06,0.00038051,4]
[320700830,1711514828182,-215.0,0.00038052,2]
[320700831,1711514828203,-178.46931499,0.00038054,2]
[320700832,1711514828233,-1274.86040062,0.00038154,4]
[320700833,1711514828256,-150.23167687,0.00038304,2]
[320700834,1711514828276,-571.528283,0.0004179,2]
[320700835,1711514828296,-750.38776527,0.00043698,4]
[320700836,1711514828317,-177.99,0.00043986,2]
[320700837,1711514828340,-156.63001031,0.00045168,120]
[320700838,1711514854089,-236.3459447,0.00034548,2]
[320700839,1711514854112,-163.36998969,0.00045168,120]
[320700840,1711514854133,-250.0,0.00045249,110]
[320700841,1711514854153,-642.23053465,0.00045819,120]
[320700851,1711515032216,-1596.64,0.00045818,4]
[320700852,1711515032226,-2842.51946535,0.00045819,120]
[320700853,1711515032237,-150.0,0.00045863,2]
[320700854,1711515032248,-250.0,0.00045869,2]
[320700855,1711515032259,-204.0832479,0.000459,18]
[320700856,1711515032268,-186.86166107,0.000459,2]
[320700857,1711515032393,-410.9398717,0.000459,12]
[320700858,1711515032402,-239.45743359,0.00045904,2]
[320700859,1711515032411,-800.0,0.00045904,2]
[320700860,1711515032421,-570.65394093,0.00045975,4]
[320700861,1711515032431,-351.04,0.0004599,30]
[320700862,1711515032440,-279.31,0.00045995,2]
[320700863,1711515032450,-1373.14894128,0.00045998,30]
[320700864,1711515032460,-155.0,0.00045998,4]
[320700865,1711515032470,-3146.75385295,0.00045998,4]
[320700866,1711515032480,-1814.82714589,0.00045999,4]
[320700867,1711515032490,-642.22784479,0.00045999,120]
[320700868,1711515032500,-176921.27054719,0.00046,4]
[320700869,1711515032516,-359.10722341,0.00046,4]
[320700870,1711515032531,-1858.77205649,0.00046,4]
[320700871,1711515032542,-9279.55599161,0.00046,4]
[320700872,1711515032555,-301.48,0.00046,4]
[320700873,1711515032570,-440.0,0.00046,4]
[320700876,1711515032594,-969.45652537,0.00046,4]
[320700878,1711515032605,-3367.93087916,0.00046,4]
[320700880,1711515032616,-919.32315803,0.00046,4]
[320700882,1711515032630,-4815.89,0.00046,4]
[320700884,1711515032641,-1498.33629159,0.00046,4]
[320700887,1711515032653,-31720.0,0.00046,4]
[320700889,1711515032665,-263.07359539,0.00046,4]
[320700892,1711515032687,-500.0,0.00046,4]
[320700903,1711515032781,-4657.96426151,0.00046,4]
[320700905,1711515032792,-811.05669613,0.00046,4]
[320700910,1711515032823,-452.62964378,0.00046,4]
[320700913,1711515032847,-756.27288357,0.00046,4]
[320700916,1711515032863,-753.66321503,0.00046,4]
[320700960,1711515038344,-49507.8704,0.00046,4]
[320700961,1711515038356,-441.76981965,0.00046,4]
[320700962,1711515038400,-579.84038018,0.00046,4]
[320700963,1711515038519,-1369.7711003,0.00046,4]
[320700964,1711515038530,-268.9152691,0.00046,4]
[320700970,1711515040434,-346.80740962,0.00046,4]
[320700971,1711515040563,-6528.0,0.00046,4]
[320700972,1711515040593,-3282.90727306,0.00046,4]
[320701005,1711515043284,-186826.50981064,0.00046,4]
[320701006,1711515043293,-193.07,0.00046004,2]
[320701007,1711515043303,-177.99,0.0004625,2]
[320701008,1711515043313,-2254.85592043,0.00046436,10]
[320701009,1711515043322,-3568.45,0.00046596,120]
[320701010,1711515043337,-200.0,0.00046596,120]
[320701011,1711515043361,-687.84,0.00046921,2]
[320701012,1711515043377,-155.4149133,0.00047317,30]
[320701013,1711515043399,-239.45743357,0.00047489,2]
[320701014,1711515043417,-151.032713,0.00047498,99]
[320701015,1711515043435,-410.93987165,0.00047626,13]
[320701016,1711515043453,-157.88682874,0.00047772,30]
[320701017,1711515043468,-610.05460698,0.000479,2]
[320701018,1711515043488,-249.27667791,0.00047999,120]
[320701019,1711515043506,-47618.63108778,0.00048,2]
[320701020,1711515043522,-2889.08480839,0.00048,15]
[320701021,1711515043546,-4836.44403607,0.00048,15]
[320701022,1711515043567,-46290.27429728,0.00048,15]
[320701023,1711515043780,-23685.59685826,0.00048,15]
[320701024,1711515043795,-154.68580126,0.00048106,30]
[320701025,1711515043810,-151.032713,0.00048498,100]
[320701026,1711515043824,-177.99,0.00048514,2]
[320701027,1711515043840,-1426.41873102,0.00048553,2]
[320701028,1711515043854,-3333.0,0.00048665,60]
[320701029,1711515043869,-1016.0,0.000487,117]
[320701030,1711515043884,-151.032713,0.00048798,101]
[320701031,1711515043899,-600.0,0.000488,2]
[320701032,1711515043914,-953.95247428,0.00048878,60]
[320701033,1711515043952,-1534.915268,0.00048878,60]
[320701034,1711515044160,-511.13225772,0.00048878,60]
[320701035,1711515044176,-2424.24893557,0.0004888,2]
[320701036,1711515044194,-2038.92130415,0.0004888,2]
[320701037,1711515044225,-360.96521316,0.00045999,4]
[320701038,1711515044240,-9621.0651794,0.0004888,2]
[320701039,1711515046311,-738.51670459,0.0004888,2]
[320701040,1711515046371,-582.97266548,0.0004888,2]
[320701041,1711515046435,-47096.58900604,0.0004888,2]
[320701042,1711515046716,-25349.18015865,0.0004888,2]
[320701043,1711515046726,-440.8318424,0.0004888,61]
[320701044,1711515046735,-155.3739696,0.0004888,2]
[320701045,1711515046745,-200.0,0.0004888,7]
[320701046,1711515046755,-2000.0,0.0004888,7]
[320701047,1711515046764,-200.0,0.0004888,7]
[320701048,1711515046774,-2000.0,0.0004888,7]
[320701049,1711515046783,-200.0,0.0004888,7]
[320701050,1711515046792,-1794.99911,0.0004888,44]
[320701051,1711515046801,-2000.0,0.0004888,7]
[320701052,1711515046811,-154.68580126,0.00048911,30]
[320701053,1711515046820,-155.09633978,0.00048958,30]
[320701054,1711515046829,-17052.2507985,0.00049038,2]
[320701055,1711515046838,-1716.5948187,0.00049038,2]
[320701056,1711515046848,-1426.41873102,0.00049052,2]
[320701057,1711515046856,-239.45743357,0.00049075,2]
[320701058,1711515046866,-610.05460692,0.00049229,2]
[320701059,1711515046875,-10706.05638962,0.00049249,10]
[320701060,1711515070060,505.07530071,0.00018,2]
[320701061,1711515070122,620742.65372682,0.00018,2]
[320701062,1711515160865,860.36301045,0.000195,2]
[320701063,1711515239760,41970.32456646,0.00018,2]
[320701064,1711515242317,150.0,0.00017999,2]
[320701065,1711515243154,210.0,0.00019799,2]
[320701066,1711515244098,293.0,0.00021779,2]
[320701070,1711515277418,920147.36001513,0.00018,2]
[320701071,1711515293109,168638.18844611,0.00018,2]
[320701072,1711515415412,2388.32588109,0.00038381,30]
[320701073,1711515825567,192.27,0.00020804,2]
[320701074,1711516039162,-763.08835726,0.00023924,2]
[320701075,1711516039184,-784.19077975,0.00023924,2]
[320701076,1711516039203,-187.93435087,0.00023925,2]
[320701077,1711516051100,-335.41481277,0.00023925,2]
[320701078,1711516051120,-6678.54535134,0.00023925,2]
[320701083,1711516135708,-2978.96498714,0.00023924,2]
[320701084,1711516135891,-332.24516899,0.00023926,2]
[320701085,1711516135916,-150.0,0.00023927,2]
[320701086,1711516135940,-1839.90937026,0.0002393,2]
[320701087,1711516135965,-157.56813104,0.00024898,2]
[320701088,1711516135990,-350.0,0.00025,3]
[320701089,1711516136016,-18191.31234257,0.0003,2]
[320701102,1711516231469,-471.07573653,0.00029999,2]
[320701103,1711516231525,-2206.83386658,0.00029999,2]
[320701104,1711516231534,-505.073525,0.000382,26]
[320701105,1711516231544,-7607.99,0.00038331,2]
[320701106,1711516231553,-614.14,0.00038331,2]
[320701107,1711516231563,-999.99,0.00038331,2]
[320701108,1711516231572,-150.99,0.00038331,10]
[320701109,1711516231582,-363.81,0.00038331,2]
[320701110,1711516231592,-499.99,0.00038331,2]
[320701111,1711516231602,-9999.99,0.00038331,2]
[320701112,1711516231612,-150.99,0.00038331,2]
[320701113,1711516231622,-150.99,0.00038331,2]
[320701114,1711516231632,-432.08409502,0.0003834,4]
[320701115,1711516231642,-406.08005128,0.00038366,4]
[320701116,1711516231652,-238.21161307,0.00038366,2]
[320701117,1711516231661,-260.63176904,0.00038366,4]
[320701118,1711516231670,-332.87392543,0.00038366,4]
[320701119,1711516231681,-155.45223297,0.00038366,4]
[320701120,1711516231690,-598.74,0.00038366,4]
[320701121,1711516231700,-783.14495337,0.00038366,4]
[320701122,1711516231709,-445.34261925,0.00038366,4]
[320701123,1711516231718,-1356.89,0.00038366,2]
[320701124,1711516231728,-9785.63,0.00038366,2]
[320701125,1711516231737,-165.09636315,0.00038367,4]
[320701126,1711516231747,-3909.03498584,0.00038367,4]
[320701127,1711516231764,-1181.27590582,0.00038367,4]
[320701128,1711516231775,-79433.41145443,0.00038368,2]
[320701129,1711516231784,-4019.0357295,0.00038368,2]
[320701130,1711516231793,-5188.54441345,0.00038368,2]
[320701131,1711516231802,-37748.36633507,0.00038368,2]
[320701132,1711516231811,-1837.80282114,0.00038906,2]
[320701133,1711516231821,-167.62020358,0.00039006,2]
[320701134,1711516231831,-1001.38,0.0004,120]
[320701135,1711516231840,-14034.05,0.00040106,2]
[320701136,1711516231850,-510.42,0.00040141,2]
[320701137,1711516231859,-345.36,0.00040672,120]
[320701138,1711516231871,-250.0,0.00040722,110]
[320701139,1711516231880,-250.0,0.00040887,2]
[320701140,1711516231889,-640.0,0.0004092,2]
[320701141,1711516231899,-1837.80282107,0.00041026,2]
[320701142,1711516231908,-750.27,0.00041114,2]
[320701143,1711516231917,-167.62020349,0.00041114,2]
[320701144,1711516231927,-161.66,0.00041399,2]
[320701145,1711516231938,-183.2,0.00041518,2]
[320701146,1711516231947,-2903.95,0.00041743,2]
[320701147,1711516231957,-250.0,0.00041763,2]
[320701148,1711516231967,-1260.61,0.00041804,2]
[320701149,1711516231976,-632.99,0.00042337,2]
[320701150,1711516231985,-632.99,0.00042348,2]
[320701151,1711516231995,-632.99,0.00042359,2]
[320701152,1711516232004,-632.99,0.0004237,2]
[320701153,1711516232014,-632.99,0.00042381,2]
[320701154,1711516232023,-632.99,0.00042393,2]
[320701155,1711516232033,-632.99,0.00042404,2]
[320701156,1711516232042,-632.99,0.00042415,2]
[320701157,1711516232051,-632.99,0.00042426,2]
[320701158,1711516232060,-632.99,0.00042437,2]
[320701159,1711516232070,-632.99,0.00042448,2]
[320701160,1711516232080,-632.99,0.00042459,2]
[320701161,1711516232090,-632.99,0.00042471,2]
[320701162,1711516232099,-632.99,0.00042482,2]
[320701163,1711516232109,-632.99,0.00042493,2]
[320701164,1711516232118,-166.59,0.00042502,2]
[320701165,1711516232128,-632.99,0.00042504,2]
[320701166,1711516232137,-632.99,0.00042515,2]
[320701167,1711516232146,-632.99,0.00042526,2]
[320701168,1711516232156,-632.99,0.00042537,2]
[320701169,1711516232166,-632.99,0.00042549,2]
[320701170,1711516232177,-510.42,0.00042881,2]
[320701171,1711516232187,-168.16,0.0004307,2]
[320701172,1711516232197,-1837.80282107,0.00043145,2]
[320701173,1711516232206,-167.62020349,0.00043223,2]
[320701174,1711516232216,-156.55,0.00043352,2]
[320701175,1711516232225,-2416.18245585,0.00043526,4]
[320701176,1711516232235,-156.55,0.00043541,2]
[320701177,1711516232244,-156.55,0.00043729,2]
[320701178,1711516232254,-183.2,0.00043782,2]
[320701179,1711516232264,-1378.93,0.00043783,2]
[320701180,1711516232273,-156.55,0.00043917,2]
[320701181,1711516232282,-156.55,0.00044105,2]
[320701182,1711516232292,-156.55,0.00044294,2]
[320701183,1711516232301,-156.55,0.00044482,2]
[320701184,1711516232310,-348.1442,0.00044532,2]
[320701185,1711516232319,-1000.0,0.00044532,2]
[320701186,1711516232329,-156.55,0.0004467,2]
[320701187,1711516232338,-156.55,0.00044858,2]
[320701188,1711516232348,-156.55,0.00045047,2]
[320701189,1711516232357,-156.55,0.00045235,2]
[320701190,1711516232366,-1837.80282107,0.00045265,2]
[320701191,1711516232377,-167.62020349,0.00045331,2]
[320701192,1711516232387,-156.55,0.00045423,2]
[320701193,1711516232396,-156.55,0.00045611,2]
[320701194,1711516232409,-510.42,0.0004562,2]
[320701195,1711516232418,-9479.93837623,0.00045633,2]
[320701196,1711516232428,-486.7099,0.00045719,2]
[320701197,1711516232439,-1407.7401,0.00045719,2]
[320701198,1711516232449,-345.36,0.00045756,120]
[320701199,1711516232458,-195.51,0.00045856,2]
[320701200,1711516232467,-1814.82714589,0.00045999,4]
[320701201,1711516232477,-268.9152691,0.00046,4]
[320701202,1711516232487,-180.0,0.00046022,120]
[320701203,1711516232497,-640.0,0.00046036,2]
[320701204,1711516232507,-183.2,0.00046045,2]
[320701205,1711516232621,-173.33,0.00046132,120]
[320701206,1711516232631,-2973.7,0.00046196,120]
[320701207,1711516232641,-750.27,0.00046253,2]
[320701208,1711516232650,-247.08673333,0.00046575,30]
[320701209,1711516232659,-1837.80282107,0.00047384,2]
[320701210,1711516232669,-500.0,0.00047436,2]
[320701211,1711516232678,-167.62020349,0.0004744,2]
[320701212,1711516232688,-157.88682874,0.00047577,30]
[320701213,1711516232698,-1278.0,0.00048,20]
[320701214,1711516232708,-151.032713,0.00048198,93]
[320701215,1711516232718,-183.2,0.00048309,2]
[320701216,1711516232727,-151.032713,0.00048498,94]
[320701217,1711516232737,-647.54883776,0.000485,2]
[320701218,1711516232746,-5000.0,0.0004869,2]
[320701219,1711516232755,-308.20490379,0.00048698,13]
[320701220,1711516232764,-179.45048991,0.000487,33]
[320701221,1711516232773,-12375.31878411,0.000487,24]
[320701222,1711516232782,-204.0832479,0.000487,20]
[320701223,1711516232791,-178.72975956,0.000487,2]
[320701224,1711516232801,-1016.0,0.000487,117]
[320701225,1711516232810,-528.71399272,0.000487,2]
[320701226,1711516232819,-160.60239348,0.00048736,3]
[320701227,1711516232828,-1495.83259,0.0004874,43]
[320701228,1711516232837,-5000.0,0.0004878,3]
[320701229,1711516232847,-38917.23474622,0.00048797,5]
[320701230,1711516232856,-151.032713,0.00048798,95]
[320701231,1711516232865,-696821.92474919,0.000488,2]
[320701232,1711516232882,-451.5072,0.000488,2]
[320701233,1711516232893,-449.1466,0.000488,2]
[320701244,1711516237391,-179.90175086,0.000487,27]
[320701245,1711516237401,-503.93824914,0.000488,2]
[320701246,1711516237413,-804.7678973,0.000488,2]
[320701247,1711516237441,-0.00276077,0.000488,2]
[320701248,1711516237464,-3207.70244083,0.000488,2]
[320701249,1711516237476,-639.76622868,0.000488,2]
[320701250,1711516237722,-927.061008,0.000488,2]
[320701252,1711516237900,-2e-08,0.000488,2]
[320701253,1711516237926,-1738.6710412,0.000488,2]
[320701254,1711516237938,-51402.76483321,0.000488,2]
[320701255,1711516241517,-160.60239348,0.00048736,3]
[320701256,1711516241527,-5000.0,0.0004878,3]
[320701257,1711516241537,-78639.90426686,0.000488,2]
[320701258,1711516241549,-667.32977025,0.000488,2]
[320701261,1711516242509,-311.60783245,0.000488,2]
[320701262,1711516242566,-87316.25478981,0.000488,2]
[320701263,1711516242622,-1534.22458076,0.000488,2]